bitfinex/quotes_ETHUSD_20250318
["timestamp","ask_amount","ask_price","bid_price","bid_amount"]
[1742300077852,4.71073138,1897.9,1897.8,41.323113]
[1742300080544,4.953,1898.0,1897.9,5.26898]
[1742300080721,4.71073138,1898.1,1898.0,5.2687]
[1742300081055,4.71073138,1898.1,1898.0,6.0215]
[1742300081419,4.71073138,1898.1,1898.0,41.0215]
[1742300082340,4.71073138,1898.1,1898.0,40.2687]
[1742300084846,7.71073138,1898.1,1898.0,40.2687]
[1742300085025,7.71073138,1898.1,1898.0,45.349354]
[1742300086160,4.71073138,1898.3,1898.2,5.26814]
[1742300086325,7.71073138,1898.3,1898.2,5.26814]
[1742300086721,7.71073138,1898.3,1898.2,40.26814]
[1742300087128,3.0,1898.2,1898.1,5.2683]
[1742300087826,5.24603138,1898.3,1898.1,5.2683]
[1742300087827,8.24603138,1898.3,1898.1,5.2683]
[1742300088027,8.24603138,1898.3,1898.0,45.53726]
[1742300088250,8.24603138,1898.3,1898.0,5.26859]
[1742300088251,7.71073138,1898.1,1898.0,5.26859]
[1742300088467,7.71073138,1898.1,1897.9,5.26892]
[1742300088760,8.24603138,1898.1,1897.9,40.26892]
[1742300089560,8.24603138,1898.1,1897.9,40.26884]
[1742300089926,0.09525578,1898.0,1897.9,40.26884]
[1742300090456,0.09525578,1898.0,1897.9,35.0]
[1742300091365,0.09525578,1898.0,1897.9,40.26898]
[1742300093951,0.09525578,1898.0,1897.9,44.822789]
[1742300095043,0.63055578,1898.0,1897.9,40.26898]
[1742300097565,0.63055578,1898.0,1897.9,5.26898]
[1742300097745,3.63055578,1898.0,1897.8,5.26911]
[1742300097946,4.71073138,1897.9,1897.8,5.26911]
[1742300098363,4.80556263,1897.9,1897.8,5.26911]
[1742300101685,4.80556263,1897.9,1897.8,40.26911]
[1742300103184,0.09483125,1897.9,1897.8,44.61400027]
[1742300103609,0.09483125,1897.9,1897.8,45.39100027]
[1742300105655,7.71073138,1897.9,1897.8,45.39100027]
[1742300105855,7.80556263,1897.9,1897.8,45.39100027]
[1742300107861,7.80556263,1897.9,1897.8,44.61400027]
[1742300108803,7.80556263,1897.9,1897.8,39.34489027]
[1742300109099,3.0,1897.8,1897.7,5.26937]
[1742300109504,3.0,1897.8,1897.7,35.0]
[1742300109505,3.63015304,1897.8,1897.7,35.0]
[1742300109690,3.63015304,1897.8,1897.3,6.09192]
[1742300109691,3.0,1897.6,1897.3,5.27055]
[1742300109859,7.71073138,1897.4,1897.3,5.27055]
[1742300110060,7.71073138,1897.4,1897.3,40.27055]
[1742300110460,7.80546467,1897.4,1897.3,40.27055]
[1742300110795,7.80546467,1897.4,1897.3,35.0]
[1742300111019,3.0,1897.3,1897.1,5.27109]
[1742300111215,3.0,1897.1,1897.0,10.54283]
[1742300111380,3.0,1897.1,1897.0,40.27137]
[1742300111589,3.09405806,1897.1,1897.0,40.27137]
[1742300112883,3.09405806,1897.1,1897.0,35.0]
[1742300113087,3.48437053,1897.1,1897.0,35.0]
[1742300113906,3.48437053,1897.1,1897.0,40.27148]
[1742300114314,3.48437053,1897.1,1897.0,35.0]
[1742300114592,9.62861072,1897.1,1897.0,35.0]
[1742300114798,10.16391072,1897.1,1897.0,35.0]
[1742300114993,10.16391072,1897.1,1896.7,5.27228]
[1742300114994,5.27152,1897.0,1896.7,5.27228]
[1742300115196,0.5353,1896.7,1896.5,5.27286]
[1742300115405,3.0,1896.6,1896.4,5.27312]
[1742300115591,7.71073138,1896.5,1896.4,5.27312]
[1742300115777,7.80427728,1896.5,1896.4,5.27312]
[1742300115995,7.80427728,1896.5,1896.4,40.27312]
[1742300119414,8.20734023,1896.5,1896.4,40.27312]
[1742300121224,8.20734023,1896.5,1896.4,35.0]
[1742300122422,8.20734023,1896.5,1896.4,40.27314]
[1742300132647,8.74264023,1896.5,1896.4,40.27314]
[1742300132816,8.74264023,1896.5,1896.2,10.54728]
[1742300132817,9.61690425,1896.5,1896.2,10.54728]
[1742300133024,7.71073138,1896.3,1896.2,10.54728]
[1742300133238,7.80226146,1896.3,1896.2,5.27361]
[1742300133835,4.80226146,1896.3,1896.1,10.54772]
[1742300133999,4.80226146,1896.3,1896.1,10.54771]
[1742300134203,4.80226146,1896.3,1896.2,5.2737]
[1742300134835,5.06230617,1896.3,1896.2,5.2737]
[1742300135318,4.80226146,1896.3,1896.1,5.27385]
[1742300135516,3.0,1896.2,1896.0,5.27417]
[1742300135723,4.71073138,1896.1,1895.9,5.27443]
[1742300135926,4.71073138,1896.0,1895.9,5.27443]
[1742300136131,5.09732931,1896.0,1895.9,5.27443]
[1742300136444,5.18839046,1896.0,1895.9,5.27443]
[1742300138148,0.47765908,1896.0,1895.9,5.27443]
[1742300141318,0.09106115,1896.0,1895.9,6.09923]
[1742300141518,0.09106115,1896.0,1895.9,7.236622]
[1742300143222,0.09106115,1896.0,1895.9,6.09923]
[1742300144056,0.48199023,1896.0,1895.9,5.27443]
[1742300144227,0.09106115,1896.0,1895.9,5.27443]
[1742300146552,0.09106115,1896.0,1895.9,6.09063]
[1742300149734,1.15e-06,1896.0,1895.9,6.09063]
[1742300149943,6.35e-06,1896.0,1895.9,7.227162]
[1742300150126,0.08417885,1896.0,1895.9,7.227162]
[1742300150832,6.39e-06,1896.0,1895.9,7.27989505]
[1742300151035,7.71073138,1896.4,1896.3,6.02852]
[1742300151238,7.78916313,1896.4,1896.3,6.02852]
[1742300151556,7.78916313,1896.4,1896.3,7.15873]
[1742300155559,7.78916313,1896.4,1896.3,5.27342]
[1742300156663,8.17751662,1896.4,1896.3,5.27342]
[1742300166037,8.72751662,1896.4,1896.2,5.27358]
[1742300166246,1.0853,1896.3,1896.1,5.27389]
[1742300166451,7.71073138,1896.2,1896.1,5.27389]
[1742300166655,7.78983933,1896.2,1896.0,5.27422]
[1742300166867,8.67735326,1896.2,1896.0,5.27409]
[1742300167371,9.22735326,1896.2,1896.1,5.27398]
[1742300167668,9.22735326,1896.2,1896.0,10.54824]
[1742300167868,9.22735326,1896.2,1896.0,5.27409]
[1742300168039,14.18235326,1896.2,1896.0,5.27409]
[1742300168240,0.69186583,1896.1,1895.9,10.54895]
[1742300168442,12.95676276,1896.0,1895.9,5.27442]
[1742300168641,8.24603138,1896.0,1895.9,5.27442]
[1742300168842,8.32481215,1896.0,1895.9,5.27442]
[1742300170260,7.78951215,1896.0,1895.9,40.27442]
[1742300171675,8.32481215,1896.0,1895.9,40.27442]
[1742300173686,7.78951215,1896.0,1895.9,40.27442]
[1742300177288,0.07878077,1896.0,1895.9,45.712471]
[1742300177667,6.02,1896.3,1896.2,5.2737]
[1742300177868,5.09908487,1896.4,1896.3,5.27342]
[1742300178056,8.09908487,1896.4,1896.3,5.27342]
[1742300178481,8.09908487,1896.4,1896.3,40.27342]
[1742300179481,8.09908487,1896.4,1896.3,5.27342]
[1742300179684,8.17704755,1896.4,1896.3,5.27342]
[1742300181067,8.71234755,1896.4,1896.3,5.27342]
[1742300181253,3.0,1896.3,1896.2,5.27355]
[1742300181458,3.55,1896.3,1896.2,5.27355]
[1742300181963,3.62796268,1896.3,1896.2,5.2737]
[1742300182991,0.07796268,1896.3,1896.2,5.2737]
[1742300183195,4.78869406,1896.3,1896.2,6.0607]
[1742300183499,4.78869406,1896.3,1896.2,7.721545]
[1742300185172,0.07796268,1896.3,1896.2,7.721545]
[1742300185557,4.71073138,1896.7,1896.5,5.27275]
[1742300185764,4.71073138,1896.7,1896.6,5.27259]
[1742300186058,4.71073138,1896.7,1896.6,40.27259]
[1742300186374,0.39281672,1896.8,1896.7,5.27231]
[1742300186572,1.3518177,1897.1,1896.9,5.27159]
[1742300186777,5.26073138,1897.0,1896.9,5.27159]
[1742300186977,4.71073138,1897.0,1896.9,5.27159]
[1742300187391,5.26073138,1897.0,1896.9,5.27159]
[1742300187592,8.26073138,1897.0,1896.9,5.27159]
[1742300190585,8.65014095,1897.0,1896.9,5.27159]
[1742300191414,3.0,1896.9,1896.8,5.27191]
[1742300193117,3.07594176,1896.9,1896.8,5.27191]
[1742300195709,0.07594176,1896.9,1896.8,5.27191]
[1742300195877,0.07594176,1896.9,1896.8,6.10441]
[1742300196097,0.07594176,1896.9,1896.8,7.242079]
[1742300198337,0.07594176,1896.9,1896.8,42.242079]
[1742300201347,7.46e-06,1896.9,1896.8,42.242079]
[1742300201648,4.71073138,1897.2,1897.1,5.2712]
[1742300201800,4.71073138,1897.2,1897.1,6.0262]
[1742300201996,4.71073138,1897.3,1897.2,5.27076]
[1742300202198,0.5353,1897.7,1897.6,5.26981]
[1742300202644,25.944,1897.8,1897.7,5.26953]
[1742300202842,20.44,1897.8,1897.7,5.26953]
[1742300203049,20.84232087,1897.8,1897.7,5.26953]
[1742300203408,22.55305225,1897.8,1897.7,5.26953]
[1742300203810,6.02,1898.0,1897.9,5.26898]
[1742300204033,5.99921662,1898.3,1898.1,5.26817]
[1742300204034,5.4883,1898.3,1898.1,5.26817]
[1742300204197,5.88387521,1898.3,1898.1,5.26817]
[1742300204399,5.88387521,1898.3,1898.0,5.26854]
[1742300204647,5.88387521,1898.3,1898.1,5.26825]
[1742300204799,0.39557521,1898.3,1898.2,5.26814]
[1742300205000,0.62928022,1898.3,1898.0,5.26855]
[1742300205259,4.71073138,1898.1,1898.0,5.26855]
[1742300206426,4.71073138,1898.1,1897.9,5.26894]
[1742300207147,4.71073138,1898.1,1897.9,10.53776]
[1742300207549,4.71073138,1898.1,1898.0,5.2687]
[1742300208243,4.71073138,1898.1,1897.9,5.26882]
[1742300208732,4.71073138,1898.1,1897.7,0.7596]
[1742300208733,0.55,1898.0,1897.7,10.53887]
[1742300208932,4.71073138,1897.9,1897.7,5.26935]
[1742300209101,4.78327463,1897.9,1897.7,5.26935]
[1742300209302,4.78327463,1897.9,1897.8,5.26925]
[1742300211056,4.78327463,1897.9,1897.7,5.26935]
[1742300211057,5.31660209,1897.9,1897.7,5.26935]
[1742300211258,5.85190209,1897.9,1897.6,5.26973]
[1742300211429,4.71073138,1897.7,1897.6,5.26973]
[1742300211832,4.78446212,1897.7,1897.6,5.26973]
[1742300213215,4.78446212,1897.7,1897.5,5.26995]
[1742300213415,5.26290833,1897.7,1897.5,5.26995]
[1742300213916,5.26290833,1897.7,1897.6,5.26981]
[1742300214121,4.78446212,1897.7,1897.6,5.26981]
[1742300214765,4.78446212,1897.7,1897.6,6.08831]
[1742300215255,0.07373074,1897.7,1897.6,6.08831]
[1742300215664,10.73073138,1897.9,1897.8,5.26925]
[1742300216960,5.11496404,1897.9,1897.8,40.26925]
[1742300219367,5.11496404,1897.9,1897.8,5.26925]
[1742300219734,5.62646044,1897.9,1897.7,5.26942]
[1742300219930,6.16176044,1897.9,1897.7,5.26942]
[1742300220135,6.16176044,1897.9,1897.7,10.53881]
[1742300220565,6.16176044,1897.9,1897.8,5.26925]
[1742300220766,6.16176044,1897.9,1897.7,5.26939]
[1742300221071,6.16176044,1897.9,1897.6,10.53944]
[1742300221274,4.71073138,1897.7,1897.6,10.53944]
[1742300222122,4.71073138,1897.7,1897.6,5.26967]
[1742300223323,4.71073138,1897.7,1897.6,6.37019816]
[1742300223528,4.71073138,1897.7,1897.6,7.20339816]
[1742300223970,4.71073138,1897.7,1897.6,41.10287]
[1742300225068,4.78438589,1897.7,1897.6,41.10287]
[1742300225257,4.78438589,1897.7,1897.6,40.26967]
[1742300227374,4.78438589,1897.7,1897.6,5.26967]
[1742300227575,0.07365451,1897.7,1897.6,6.03767]
[1742300227778,5.11496404,1897.9,1897.8,5.26925]
[1742300227977,5.18859677,1897.9,1897.8,5.26925]
[1742300228181,7.78436411,1897.9,1897.8,5.26925]
[1742300228336,4.78436411,1897.9,1897.8,5.26925]
[1742300228984,0.07363273,1897.9,1897.8,5.26925]
[1742300229277,7.71073138,1898.1,1898.0,5.2687]
[1742300230289,17.438,1898.4,1898.3,5.26787]
[1742300230493,17.438,1898.4,1898.1,5.26839]
[1742300230494,3.0,1898.3,1898.1,5.26816]
[1742300230672,4.71073138,1898.2,1898.0,5.26865]
[1742300230990,7.71073138,1898.2,1898.1,35.0]
[1742300231148,8.53533452,1898.2,1898.1,35.0]
[1742300231786,6.08533452,1898.2,1898.1,35.0]
[1742300231951,6.08533452,1898.2,1897.9,5.26877]
[1742300232161,4.71073138,1898.0,1897.9,5.26877]
[1742300232840,4.71073138,1898.0,1897.8,40.26921]
[1742300233045,4.71073138,1898.0,1897.9,5.26898]
[1742300234153,1.7618244,1898.2,1897.9,5.26876]
[1742300234154,3.93722126,1898.2,1897.9,5.26876]
[1742300234480,4.71073138,1898.1,1898.0,6.05604]
[1742300235895,4.71073138,1898.1,1898.0,5.26844]
[1742300238063,4.71073138,1898.1,1898.0,40.26844]
[1742300238962,4.71073138,1898.1,1898.0,41.03134]
[1742300239906,4.78463633,1898.1,1898.0,41.03134]
[1742300240205,4.78463633,1898.1,1898.0,46.0640486]
[1742300240964,4.71073138,1898.1,1898.0,46.0640486]
[1742300243483,4.71073138,1898.4,1898.2,5.26814]
[1742300243799,4.71073138,1898.4,1898.3,6.08467]
[1742300244303,4.71073138,1898.4,1898.3,41.08467]
[1742300244507,5.4853,1898.8,1898.7,5.26676]
[1742300244832,10.59241954,1898.8,1898.7,5.26676]
[1742300246193,8.64241954,1898.8,1898.7,5.26676]
[1742300246504,8.10711954,1898.8,1898.7,5.26676]
[1742300247177,5.10711954,1898.8,1898.7,5.26676]
[1742300247377,4.71073138,1898.8,1898.7,6.400583]
[1742300249501,0.39555624,1898.9,1898.8,5.26648]
[1742300249701,4.71073138,1898.9,1898.8,5.26648]
[1742300252200,5.10385082,1898.9,1898.8,5.26648]
[1742300254834,5.18005207,1898.9,1898.8,5.26648]
[1742300257107,4.78693263,1898.9,1898.8,6.846456]
[1742300258756,4.78693263,1898.9,1898.8,5.26648]
[1742300266248,0.07620125,1898.9,1898.8,5.26648]
[1742300266420,6.0333,1899.4,1899.2,5.26521]
[1742300266624,4.78710666,1899.3,1899.2,5.26521]
[1742300266947,7.78710666,1899.3,1899.2,5.26521]
[1742300267135,7.78710666,1899.3,1899.1,5.26553]
[1742300267743,7.78710666,1899.3,1899.1,5.26559]
[1742300269149,0.5353,1899.2,1899.0,5.26584]
[1742300269450,4.71073138,1899.1,1899.0,5.26584]
[1742300269647,5.19215995,1899.1,1899.0,5.26584]
[1742300272654,4.78710666,1899.1,1899.0,5.26584]
[1742300272855,4.78710666,1899.1,1899.0,6.845648]
[1742300276361,4.78710666,1899.1,1899.0,5.26584]
[1742300278629,4.78710666,1899.1,1899.0,6.06684]
[1742300283732,0.07637528,1899.1,1899.0,6.06684]
[1742300284067,8.11587137,1899.3,1899.2,5.26537]
[1742300284238,8.19264902,1899.3,1899.2,5.26537]
[1742300284636,8.19264902,1899.3,1899.2,7.13856]
[1742300284637,0.07677765,1899.3,1899.2,7.13856]
[1742300284846,4.71073138,1899.5,1899.4,5.26482]
[1742300285161,20.9553,1899.7,1899.6,5.26426]
[1742300285367,25.66603138,1899.7,1899.6,5.26426]
[1742300285575,22.53519825,1899.7,1899.6,5.26426]
[1742300287488,23.07049825,1899.7,1899.5,5.26442]
[1742300287669,23.07049825,1899.7,1899.4,10.52947]
[1742300287969,18.35976687,1899.7,1899.4,5.26473]
[1742300288141,18.35976687,1899.7,1899.5,5.26453]
[1742300288484,9.65773138,1899.6,1899.3,5.26504]
[1742300288644,0.5353,1899.5,1899.4,5.26482]
[1742300289250,3.0,1899.5,1899.4,10.52964]
[1742300289450,7.71073138,1899.5,1899.4,10.52964]
[1742300290748,4.71073138,1899.5,1899.4,10.52964]
[1742300290939,0.93976687,1899.7,1899.6,5.26426]
[1742300291145,8.65049825,1899.7,1899.6,5.26426]
[1742300293549,3.0,1899.6,1899.5,5.26442]
[1742300295093,5.11519825,1899.7,1899.6,5.26426]
[1742300297790,0.5353,1899.6,1899.5,40.26437]
[1742300298093,3.5353,1899.6,1899.5,40.26437]
[1742300299190,3.0,1899.6,1899.5,40.26437]
[1742300299706,3.07748432,1899.6,1899.5,40.26437]
[1742300302688,3.07748432,1899.6,1899.5,41.01917]
[1742300303268,3.07748432,1899.6,1899.5,45.647557]
[1742300303864,4.7882157,1899.6,1899.5,45.647557]
[1742300306898,0.07748432,1899.6,1899.5,45.647557]
[1742300307271,4.71073138,1899.7,1899.6,5.26426]
[1742300307471,4.78823742,1899.7,1899.6,5.26426]
[1742300307707,6.44177022,1900.3,1899.6,5.26426]
[1742300307708,0.37166473,1900.4,1900.2,5.2626]
[1742300307908,0.1123497,1900.4,1900.3,5.26232]
[1742300308120,0.1123497,1900.4,1900.3,41.314812]
[1742300308282,0.1123497,1900.4,1900.3,6.314812]
[1742300308473,0.1123497,1900.4,1900.3,5.26232]
[1742300309519,0.6476497,1900.4,1900.3,5.26232]
[1742300309890,0.6623497,1900.4,1900.1,5.26284]
[1742300310090,4.71073138,1900.2,1900.0,10.52609]
[1742300310289,4.71073138,1900.1,1900.0,5.26304]
[1742300310487,5.18180452,1900.1,1900.0,5.26304]
[1742300310701,5.57764346,1900.1,1900.0,5.26304]
[1742300310902,6.11294346,1900.1,1900.0,5.26304]
[1742300311418,5.10657032,1900.1,1900.0,5.26304]
[1742300311800,4.71073138,1900.1,1900.0,5.26304]
[1742300312319,5.24603138,1900.1,1900.0,5.26304]
[1742300313092,4.71073138,1900.1,1900.0,5.26304]
[1742300313625,5.26073138,1900.1,1900.0,5.26304]
[1742300314824,5.6646585,1900.1,1900.0,5.26304]
[1742300315190,5.74008104,1900.1,1900.0,5.26304]
[1742300315696,0.07542254,1900.1,1900.0,5.26304]
[1742300317618,0.469297,1900.1,1900.0,5.26304]
[1742300319411,0.07542254,1900.1,1900.0,5.26304]
[1742300320595,4.71073138,1900.2,1900.1,5.26288]
[1742300320798,6.39803138,1900.2,1900.0,5.26304]
[1742300321008,6.47406246,1900.2,1900.0,5.26304]
[1742300321220,6.47406246,1900.2,1900.0,10.52605]
[1742300321423,6.47406246,1900.2,1900.0,10.52604]
[1742300321604,6.47406246,1900.2,1900.0,5.26299]
[1742300321808,6.47406246,1900.2,1900.1,5.26288]
[1742300322395,5.33676246,1900.2,1900.1,5.26288]
[1742300323630,4.78676246,1900.2,1900.1,5.26288]
[1742300328846,4.78676246,1900.2,1900.1,40.26288]
[1742300332632,4.78676246,1900.2,1900.1,41.06348]
[1742300332633,0.07603108,1900.2,1900.1,41.06348]
[1742300332819,4.82308108,1900.4,1900.3,5.26232]
[1742300333153,7.8992208,1900.4,1900.3,5.26232]
[1742300334337,0.18848942,1900.4,1900.3,6.3148]
[1742300334537,0.18848942,1900.4,1900.3,7.1093]
[1742300336515,0.18848942,1900.4,1900.3,42.1093]
[1742300346561,4.8992208,1900.4,1900.3,41.3148]
[1742300347632,0.18848942,1900.4,1900.3,41.3148]
[1742300351259,4.71073138,1901.5,1900.8,0.7882]
[1742300351567,3.0,1900.9,1900.8,5.26094]
[1742300351937,3.0,1900.9,1900.8,40.26094]
[1742300352132,3.39494299,1900.9,1900.8,40.26094]
[1742300352338,3.0,1900.9,1900.8,40.26094]
[1742300353358,4.71073138,1901.0,1900.9,5.26066]
[1742300353569,3.0,1901.0,1900.9,5.26066]
[1742300353770,4.71073138,1901.2,1901.1,5.26011]
[1742300356644,3.5353,1901.4,1901.3,5.25955]
[1742300356645,8.24603138,1901.4,1901.3,5.25955]
[1742300357083,7.71073138,1901.4,1901.3,5.25955]
[1742300357849,7.71073138,1901.4,1901.3,40.25955]
[1742300358049,3.0,1901.4,1901.3,40.25955]
[1742300358254,3.0,1901.5,1901.4,5.25928]
[1742300358456,7.71073138,1901.5,1901.4,5.25928]
[1742300358656,7.77382842,1901.5,1901.4,5.25928]
[1742300358862,3.06309704,1901.5,1901.4,5.25928]
[1742300360559,0.06309704,1901.5,1901.4,5.25928]
[1742300361155,0.06309704,1901.5,1901.4,9.811163]
[1742300361369,0.05855323,1901.5,1901.4,9.811163]
[1742300363393,8.65464807,1901.7,1901.6,5.25872]
[1742300364194,5.16556,1901.6,1901.5,5.25889]
[1742300364493,8.65464807,1901.7,1901.5,5.25889]
[1742300364857,1.0853,1901.6,1901.5,5.259]
[1742300365594,2.974745,1901.5,1901.4,5.25917]
[1742300365790,7.71073138,1901.5,1901.4,5.25917]
[1742300365967,7.71073138,1901.5,1901.3,5.2595]
[1742300366176,0.5353,1901.4,1901.3,5.2595]
[1742300367272,0.5353,1901.4,1901.2,5.25972]
[1742300367457,4.71073138,1901.3,1901.1,5.26002]
[1742300367661,4.71073138,1901.3,1901.1,10.51994]
[1742300368392,4.71073138,1901.3,1901.1,5.25992]
[1742300368563,3.0,1901.2,1901.0,5.2603]
[1742300368897,8.3109873,1901.1,1901.0,5.2603]
[1742300370998,3.0,1901.0,1900.9,5.26055]
[1742300371202,5.3109873,1901.1,1900.9,10.5211]
[1742300371504,0.0648147,1901.0,1900.9,10.5211]
[1742300372878,0.0648147,1901.0,1900.9,5.26055]
[1742300374592,0.0648147,1901.0,1900.9,40.26055]
[1742300375482,0.0648147,1901.0,1900.9,41.62581418]
[1742300376392,3.0,1901.2,1901.1,5.26011]
[1742300377116,3.0,1901.2,1901.1,6.06411]
[1742300377665,3.0,1901.2,1901.1,41.06411]
[1742300377872,6.02,1901.3,1901.2,5.25983]
[1742300378067,9.02,1901.3,1901.2,9.366241]
[1742300378283,6.02,1901.3,1901.2,9.366241]
[1742300378597,9.02,1901.3,1901.2,9.366241]
[1742300378800,3.0,1901.3,1901.2,5.25983]
[1742300379103,3.0,1901.3,1901.2,40.25983]
[1742300379475,17.399,1901.6,1901.5,5.259]
[1742300379476,22.10973138,1901.6,1901.5,5.259]
[1742300379668,17.399,1901.6,1901.5,7.072116]
[1742300379891,7.71073138,1901.8,1901.7,5.25845]
[1742300380072,4.71073138,1901.8,1901.7,5.25845]
[1742300381004,4.71073138,1901.8,1901.6,45.51717]
[1742300381372,4.71073138,1901.8,1901.7,5.25845]
[1742300383905,4.71073138,1901.8,1901.7,8.06981687]
[1742300385079,3.76801,1901.7,1901.5,5.25886]
[1742300385284,4.71073138,1901.6,1901.5,5.25886]
[1742300385703,3.0,1901.5,1901.4,5.25922]
[1742300386001,3.5353,1901.5,1901.3,5.25954]
[1742300386170,7.71073138,1901.4,1901.3,5.25954]
[1742300386373,3.0,1901.3,1901.2,5.25971]
[1742300386585,4.71073138,1901.4,1901.2,10.51937]
[1742300386869,4.71073138,1901.4,1901.2,5.25966]
[1742300387102,4.71073138,1901.4,1901.3,5.25955]
[1742300387607,8.11371562,1901.4,1901.3,5.25955]
[1742300387770,3.0,1901.3,1901.2,5.25966]
[1742300387974,5.11371562,1901.4,1901.2,5.25966]
[1742300388197,8.11371562,1901.4,1901.2,5.25966]
[1742300388398,3.0,1901.3,1901.2,5.25966]
[1742300389078,7.71073138,1901.4,1901.3,5.25955]
[1742300389689,3.0,1901.3,1901.2,5.25966]
[1742300390110,4.71073138,1901.4,1901.2,5.25966]
[1742300390325,3.06505364,1901.3,1901.2,5.25966]
[1742300390488,3.06505364,1901.3,1901.1,5.26006]
[1742300390687,4.71073138,1901.2,1901.1,5.26006]
[1742300391207,7.77578502,1901.2,1901.1,5.26006]
[1742300393113,3.0,1901.1,1901.0,10.5205]
[1742300393285,4.77578502,1901.2,1901.1,5.26011]
[1742300393488,4.71073138,1901.2,1901.1,5.26011]
[1742300393789,4.77578502,1901.2,1901.1,5.26011]
[1742300393985,0.06505364,1901.2,1901.1,6.05271]
[1742300394178,7.71073138,1901.2,1901.1,6.05271]
[1742300394378,7.77578502,1901.2,1901.1,6.05271]
[1742300396713,7.77578502,1901.2,1901.1,41.05271]
[1742300398182,3.06505364,1901.2,1901.1,41.05271]
[1742300398382,3.06505364,1901.2,1901.1,45.683997]
[1742300400195,3.06505364,1901.2,1901.1,40.26011]
[1742300400932,3.06505364,1901.2,1901.1,5.26011]
[1742300401910,3.0,1901.1,1901.0,45.52045]
[1742300402105,4.77536144,1901.1,1901.0,45.52045]
[1742300402931,4.77536144,1901.1,1901.0,35.0]
[1742300403110,5.78819758,1901.1,1901.0,35.0]
[1742300403638,8.78819758,1901.1,1901.0,35.0]
[1742300407442,8.31066144,1901.1,1901.0,35.0]
[1742300408446,7.77536144,1901.1,1901.0,35.0]
[1742300408603,7.77536144,1901.1,1901.0,40.26038]
[1742300409134,7.77536144,1901.1,1901.0,35.0]
[1742300409329,7.77536144,1901.1,1901.0,40.26038]
[1742300409535,7.77536144,1901.1,1901.0,35.0]
[1742300409735,7.77536144,1901.1,1901.0,40.26038]
[1742300412634,8.31066144,1901.1,1901.0,35.0]
[1742300413235,7.77536144,1901.1,1901.0,40.26038]
[1742300415534,8.86066144,1901.1,1900.8,5.26071]
[1742300415835,8.86066144,1901.1,1900.6,5.26149]
[1742300415836,7.71073138,1900.9,1900.6,5.26138]
[1742300416034,7.71073138,1900.9,1900.6,40.26131]
[1742300416035,4.71073138,1900.7,1900.6,40.26131]
[1742300416645,7.7748291,1900.7,1900.6,40.26131]
[1742300417420,7.7748291,1900.7,1900.5,5.26171]
[1742300417732,8.16644715,1900.7,1900.5,5.26163]
[1742300418726,8.16644715,1900.7,1900.4,45.52389]
[1742300418928,7.71073138,1900.5,1900.4,40.26189]
[1742300419431,7.77448137,1900.5,1900.4,40.26189]
[1742300422214,8.32448137,1900.5,1900.4,35.0]
[1742300422552,3.0,1900.4,1900.3,5.26232]
[1742300422849,7.77376401,1900.4,1900.3,41.09262]
[1742300424046,7.77376401,1900.4,1900.3,40.26232]
[1742300424655,3.06303263,1900.4,1900.3,40.26232]
[1742300424819,7.77376401,1900.4,1900.3,40.26232]
[1742300426153,4.77376401,1900.4,1900.3,40.26232]
[1742300426314,4.77376401,1900.4,1900.3,35.0]
[1742300427563,4.77376401,1900.4,1900.3,40.26232]
[1742300429453,7.77376401,1900.4,1900.3,40.26232]
[1742300433264,7.84463465,1900.4,1900.3,40.26232]
[1742300434063,8.39463465,1900.4,1900.3,35.0]
[1742300434262,8.39463465,1900.4,1900.2,5.26241]
[1742300434447,3.0,1900.3,1900.2,5.2626]
[1742300434629,7.84463465,1900.4,1900.3,5.26232]
[1742300434834,7.71073138,1900.4,1900.3,40.26232]
[1742300436665,7.71073138,1900.4,1900.3,41.32708454]
[1742300437072,4.71073138,1900.4,1900.3,41.32708454]
[1742300437231,7.71073138,1900.6,1900.5,5.26177]
[1742300437635,4.71073138,1900.6,1900.5,5.26177]
[1742300438257,4.71073138,1900.6,1900.5,40.26177]
[1742300440368,4.71073138,1900.6,1900.5,5.26177]
[1742300441159,3.0,1900.7,1900.6,5.26149]
[1742300441359,7.71073138,1900.7,1900.6,5.26149]
[1742300444363,7.71073138,1900.7,1900.6,40.26149]
[1742300444566,7.71073138,1900.7,1900.6,41.08359]
[1742300446075,7.71073138,1900.9,1900.8,5.26094]
[1742300446444,7.71073138,1900.9,1900.8,6.01254]
[1742300446652,7.71073138,1900.9,1900.8,7.139904]
[1742300447770,7.71073138,1900.9,1900.8,42.139904]
[1742300447969,7.71073138,1900.9,1900.8,41.01254]
[1742300448280,7.71073138,1900.9,1900.8,40.26094]
[1742300449077,7.71073138,1900.9,1900.8,5.26094]
[1742300449580,7.71073138,1900.9,1900.8,40.26094]
[1742300450072,7.84016764,1900.9,1900.8,5.26094]
[1742300450982,8.39016764,1900.9,1900.8,5.26094]
[1742300453650,9.3224719,1900.9,1900.8,5.26094]
[1742300453883,8.7724719,1900.9,1900.8,40.26094]
[1742300454050,7.84016764,1900.9,1900.8,40.26094]
[1742300454555,8.39016764,1900.9,1900.8,40.26094]
[1742300461596,3.12943626,1900.9,1900.8,40.26094]
[1742300461887,3.12943626,1900.9,1900.8,41.07164]
[1742300462486,0.12943626,1900.9,1900.8,41.07164]
[1742300462648,0.12943626,1900.9,1900.8,45.704913]
[1742300463077,0.5353,1901.6,1900.9,5.26055]
[1742300463276,4.959,1901.6,1901.5,5.259]
[1742300463652,5.509,1901.6,1901.5,5.259]
[1742300463862,7.959,1901.6,1901.5,5.259]
[1742300464053,17.9393,1901.8,1901.7,5.25845]
[1742300464293,22.11473138,1901.8,1901.7,5.25845]
[1742300464593,25.11473138,1901.8,1901.7,5.25845]
[1742300465089,22.23519011,1901.8,1901.7,5.25845]
[1742300465866,25.23519011,1901.8,1901.7,5.25845]
[1742300466699,25.23519011,1901.8,1901.7,40.25845]
[1742300467191,20.52445873,1901.8,1901.7,5.25845]
[1742300467391,25.23519011,1901.8,1901.7,6.391081]
[1742300467688,25.23519011,1901.8,1901.7,5.25845]
[1742300467992,7.83119011,1901.8,1901.7,5.25845]